[Event "*** MasterClass Titled Tuesday Blitz"]
[Site "Chess.com"]
[Date "2017.12.05"]
[Round "5"]
[White "LuisFSiles"]
[Black "pulvettd"]
[Result "1/2-1/2"]
[WhiteElo "2235"]
[BlackElo "2241"]
[TimeControl "180+2"]
[EndTime "15:18:36 PST"]
[Termination "Game drawn by repetition"]

1. d4 {[%clk 0:03:01.9]} 1... Nf6 {[%clk 0:02:58.7]} 2. c4 {[%clk 0:03:02.3]}
2... g6 {[%clk 0:02:59.9]} 3. Nc3 {[%clk 0:03:02.7]} 3... Bg7 {[%clk 0:02:59.8]}
4. e4 {[%clk 0:03:03.3]} 4... d6 {[%clk 0:03:00.9]} 5. Nf3 {[%clk 0:03:03.7]}
5... O-O {[%clk 0:03:02.8]} 6. Be2 {[%clk 0:03:04.9]} 6... e5 {[%clk 0:03:02.5]}
7. O-O {[%clk 0:03:05.7]} 7... Nc6 {[%clk 0:03:00.6]} 8. d5 {[%clk 0:03:06.9]}
8... Ne7 {[%clk 0:03:01.6]} 9. b4 {[%clk 0:03:07.7]} 9... Nh5 {[%clk 0:03:00]}
10. Re1 {[%clk 0:03:08.2]} 10... a5 {[%clk 0:02:50.5]} 11. Ba3 {[%clk 0:03:07]}
11... axb4 {[%clk 0:02:49]} 12. Bxb4 {[%clk 0:03:07.6]} 12... Nf4 {[%clk
0:02:49.3]} 13. Bf1 {[%clk 0:03:03.7]} 13... Bg4 {[%clk 0:02:41]} 14. h3 {[%clk
0:02:42.4]} 14... Bxf3 {[%clk 0:02:35.4]} 15. Qxf3 {[%clk 0:02:33.7]} 15... c5
{[%clk 0:02:37.3]} 16. dxc6 {[%clk 0:02:30.8]} 16... Nxc6 {[%clk 0:02:38.7]} 17.
a3 {[%clk 0:02:28.8]} 17... Nd4 {[%clk 0:02:33.6]} 18. Qd1 {[%clk 0:02:26.8]}
18... f5 {[%clk 0:02:29.2]} 19. g3 {[%clk 0:02:21.6]} 19... Nfe6 {[%clk
0:02:19.8]} 20. exf5 {[%clk 0:02:14.8]} 20... gxf5 {[%clk 0:02:19.4]} 21. Bg2
{[%clk 0:02:16.3]} 21... e4 {[%clk 0:02:20.2]} 22. Rb1 {[%clk 0:02:09.4]} 22...
Nc5 {[%clk 0:02:14.3]} 23. Bxc5 {[%clk 0:01:50.3]} 23... dxc5 {[%clk 0:02:16.2]}
24. Rxb7 {[%clk 0:01:50.7]} 24... Rxa3 {[%clk 0:02:16]} 25. Nd5 {[%clk
0:01:45.3]} 25... Qa5 {[%clk 0:02:08.9]} 26. Rf1 {[%clk 0:01:36.6]} 26... Nf3+
{[%clk 0:01:51.6]} 27. Bxf3 {[%clk 0:01:33.1]} 27... Rxf3 {[%clk 0:01:49.5]} 28.
Ne7+ {[%clk 0:00:50.9]} 28... Kh8 {[%clk 0:01:47.1]} 29. Qd7 {[%clk 0:00:51.7]}
29... Qc3 {[%clk 0:01:38.6]} 30. Kg2 {[%clk 0:00:40.8]} 30... f4 {[%clk
0:01:38.5]} 31. Nd5 {[%clk 0:00:35.6]} 31... Qe5 {[%clk 0:00:50.4]} 32. g4
{[%clk 0:00:33.9]} 32... Rg8 {[%clk 0:00:46.6]} 33. Ne7 {[%clk 0:00:24]} 33...
Qc3 {[%clk 0:00:33.9]} 34. Nxg8 {[%clk 0:00:20.7]} 34... Rg3+ {[%clk 0:00:33]}
35. fxg3 {[%clk 0:00:20.2]} 35... Qxg3+ {[%clk 0:00:32.9]} 36. Kh1 {[%clk
0:00:21.5]} 36... Qxh3+ {[%clk 0:00:33.5]} 37. Kg1 {[%clk 0:00:22.7]} 37... Qg3+
{[%clk 0:00:32.7]} 38. Kh1 {[%clk 0:00:23.4]} 38... Qh3+ {[%clk 0:00:34.6]} 39.
Kg1 {[%clk 0:00:24.6]} 39... Bd4+ {[%clk 0:00:36.5]} 40. Qxd4+ {[%clk
0:00:24.8]} 40... cxd4 {[%clk 0:00:36.5]} 41. Nf6 {[%clk 0:00:25.6]} 41... Qg3+
{[%clk 0:00:34.4]} 42. Kh1 {[%clk 0:00:26.5]} 42... Qh3+ {[%clk 0:00:36.3]} 43.
Kg1 {[%clk 0:00:27.8]} 43... Qg3+ {[%clk 0:00:38.2]} 44. Kh1 {[%clk 0:00:29.2]}
44... Qh4+ {[%clk 0:00:40.1]} 45. Kg1 {[%clk 0:00:30.6]} 45... Qxf6 {[%clk
0:00:41.4]} 46. Rfb1 {[%clk 0:00:29.6]} 46... Qh4 {[%clk 0:00:32.9]} 47. Rb8+
{[%clk 0:00:27.3]} 47... Kg7 {[%clk 0:00:33.1]} 48. R1b7+ {[%clk 0:00:28.6]}
48... Kf6 {[%clk 0:00:31]} 49. Rb6+ {[%clk 0:00:28.1]} 49... Kf7 {[%clk
0:00:25.3]} 50. R8b7+ {[%clk 0:00:28.6]} 50... Ke8 {[%clk 0:00:24.4]} 51. Rb8+
{[%clk 0:00:21]} 51... Kd7 {[%clk 0:00:22.5]} 52. R8b7+ {[%clk 0:00:21.1]} 52...
Kc8 {[%clk 0:00:23]} 53. Rb8+ {[%clk 0:00:22.4]} 53... Kc7 {[%clk 0:00:24.2]}
54. R8b7+ {[%clk 0:00:23.7]} 54... Kd8 {[%clk 0:00:25]} 55. Rb8+ {[%clk
0:00:24.9]} 55... Ke7 {[%clk 0:00:26.3]} 56. R8b7+ {[%clk 0:00:26.4]} 56... Kf8
{[%clk 0:00:27.4]} 57. Rb8+ {[%clk 0:00:27.7]} 57... Kg7 {[%clk 0:00:27.9]} 58.
R8b7+ {[%clk 0:00:28.8]} 58... Kf8 {[%clk 0:00:26.9]} 59. Rb8+ {[%clk
0:00:29.8]} 59... Kf7 {[%clk 0:00:28.2]} 60. R8b7+ {[%clk 0:00:30.6]} 60... Ke8
{[%clk 0:00:21.2]} 61. Rb8+ {[%clk 0:00:28.7]} 61... Kf7 {[%clk 0:00:21.9]} 62.
R8b7+ {[%clk 0:00:29.8]} 62... Ke8 {[%clk 0:00:21.8]} 63. Rb8+ {[%clk
0:00:20.2]} 63... Kf7 {[%clk 0:00:23.7]} 64. R8b7+ {[%clk 0:00:21.7]} 64... Kg8
{[%clk 0:00:23.9]} 65. Rb8+ {[%clk 0:00:23]} 65... Kg7 {[%clk 0:00:24.8]} 66.
R8b7+ {[%clk 0:00:24.2]} 66... Kf8 {[%clk 0:00:25.8]} 67. Rb8+ {[%clk
0:00:25.7]} 67... Ke7 {[%clk 0:00:27]} 68. R8b7+ {[%clk 0:00:26.3]} 68... Kd8
{[%clk 0:00:28]} 69. Rb8+ {[%clk 0:00:27.5]} 69... Kc7 {[%clk 0:00:29.2]} 70.
R8b7+ {[%clk 0:00:29.1]} 70... Kc8 {[%clk 0:00:30.5]} 71. Rb8+ {[%clk
0:00:30.6]} 71... Kd7 {[%clk 0:00:32.3]} 72. R8b7+ {[%clk 0:00:32.1]} 72... Ke8
{[%clk 0:00:33.9]} 73. Rb8+ {[%clk 0:00:33.7]} 73... Kf7 {[%clk 0:00:35.4]}
1/2-1/2

[Event "*** MasterClass Titled Tuesday Blitz"]
[Site "Chess.com"]
[Date "2017.12.05"]
[Round "5"]
[White "likantrophuss"]
[Black "saraswathii"]
[Result "1-0"]
[WhiteElo "2463"]
[BlackElo "2293"]
[TimeControl "180+2"]
[EndTime "15:18:42 PST"]
[Termination "likantrophuss won by resignation"]

1. Nf3 {[%clk 0:03:01.7]} 1... Nc6 {[%clk 0:02:55.6]} 2. c4 {[%clk 0:02:52.9]}
2... e5 {[%clk 0:02:55.5]} 3. Nc3 {[%clk 0:02:52.6]} 3... Nf6 {[%clk 0:02:56.2]}
4. g3 {[%clk 0:02:51.5]} 4... Bb4 {[%clk 0:02:47.7]} 5. Bg2 {[%clk 0:02:49.4]}
5... d6 {[%clk 0:02:40.5]} 6. O-O {[%clk 0:02:47.3]} 6... O-O {[%clk 0:02:40.9]}
7. a3 {[%clk 0:02:44.4]} 7... Bc5 {[%clk 0:02:32.4]} 8. b4 {[%clk 0:02:43.2]}
8... Bb6 {[%clk 0:02:33]} 9. d3 {[%clk 0:02:40.4]} 9... a6 {[%clk 0:02:29.4]}
10. Bb2 {[%clk 0:02:39.2]} 10... h6 {[%clk 0:02:27.9]} 11. e3 {[%clk 0:02:39.3]}
11... Be6 {[%clk 0:02:27.2]} 12. Qc2 {[%clk 0:02:20.7]} 12... Qe7 {[%clk
0:02:20.3]} 13. Nd2 {[%clk 0:02:20.9]} 13... Rad8 {[%clk 0:01:58.7]} 14. Kh1
{[%clk 0:02:11]} 14... Qd7 {[%clk 0:01:54.8]} 15. Nd5 {[%clk 0:02:09.5]} 15...
Bxd5 {[%clk 0:01:53]} 16. cxd5 {[%clk 0:02:09]} 16... Ne7 {[%clk 0:01:54]} 17.
e4 {[%clk 0:02:07.5]} 17... c6 {[%clk 0:01:46.7]} 18. Nc4 {[%clk 0:02:07.5]}
18... Ba7 {[%clk 0:01:46]} 19. dxc6 {[%clk 0:02:06]} 19... Nxc6 {[%clk
0:01:45.9]} 20. Ne3 {[%clk 0:01:59]} 20... Nd4 {[%clk 0:01:37.7]} 21. Bxd4
{[%clk 0:01:58.5]} 21... Bxd4 {[%clk 0:01:38]} 22. Rac1 {[%clk 0:01:59.8]} 22...
Rc8 {[%clk 0:01:33.4]} 23. Qb3 {[%clk 0:02:00.4]} 23... Bxe3 {[%clk 0:01:31.9]}
24. fxe3 {[%clk 0:02:00.2]} 24... Qg4 {[%clk 0:01:31.2]} 25. Qb2 {[%clk
0:01:54.4]} 25... Qg5 {[%clk 0:01:24.4]} 26. Qd2 {[%clk 0:01:46.9]} 26... h5
{[%clk 0:01:01.3]} 27. Bh3 {[%clk 0:01:45.3]} 27... Rxc1 {[%clk 0:00:56.8]} 28.
Qxc1 {[%clk 0:01:45.2]} 28... h4 {[%clk 0:00:57.2]} 29. Rf5 {[%clk 0:01:44.4]}
29... Qg6 {[%clk 0:00:48.8]} 30. Qe1 {[%clk 0:01:43.7]} 30... hxg3 {[%clk
0:00:43.9]} 31. hxg3 {[%clk 0:01:43.7]} 31... d5 {[%clk 0:00:29.9]} 32. exd5
{[%clk 0:01:25.5]} 32... Nxd5 {[%clk 0:00:30.5]} 33. e4 {[%clk 0:01:25.6]} 33...
Nf6 {[%clk 0:00:24.1]} 34. Rxe5 {[%clk 0:01:23.5]} 34... Rd8 {[%clk 0:00:24.7]}
35. Qe3 {[%clk 0:01:20.4]} 35... Nh5 {[%clk 0:00:18.7]} 36. Kg2 {[%clk
0:01:10.3]} 36... Nf6 {[%clk 0:00:09.2]} 37. d4 {[%clk 0:00:53]} 37... Ne8
{[%clk 0:00:05.6]} 38. d5 {[%clk 0:00:50.9]} 38... Nd6 {[%clk 0:00:05.9]} 39.
Bf5 {[%clk 0:00:49.1]} 39... Qf6 {[%clk 0:00:05.9]} 40. Qf4 {[%clk 0:00:48.7]}
40... Nc4 {[%clk 0:00:06.5]} 41. Bh7+ {[%clk 0:00:35.2]} 41... Kxh7 {[%clk
0:00:06.3]} 42. Qxf6 {[%clk 0:00:36.6]} 42... gxf6 {[%clk 0:00:07.9]} 43. Re7
{[%clk 0:00:37.1]} 43... Nd6 {[%clk 0:00:09.1]} 44. Kf3 {[%clk 0:00:34.7]} 44...
Kg6 {[%clk 0:00:09.8]} 45. a4 {[%clk 0:00:30.5]} 45... Rc8 {[%clk 0:00:10.7]}
46. Rd7 {[%clk 0:00:29.3]} 46... Nc4 {[%clk 0:00:09.9]} 47. Rxb7 {[%clk
0:00:27.7]} 47... Ne5+ {[%clk 0:00:11.8]} 48. Ke2 {[%clk 0:00:27.2]} 48... Rc2+
{[%clk 0:00:12.6]} 49. Ke3 {[%clk 0:00:26.8]} 49... Rc3+ {[%clk 0:00:13.8]} 50.
Kd4 {[%clk 0:00:27.4]} 50... Rxg3 {[%clk 0:00:14.3]} 51. b5 {[%clk 0:00:20.5]}
51... axb5 {[%clk 0:00:14]} 52. axb5 {[%clk 0:00:21.5]} 52... Rb3 {[%clk
0:00:14.6]} 53. b6 {[%clk 0:00:21.3]} 53... Kg5 {[%clk 0:00:14]} 54. d6 {[%clk
0:00:21]} 54... Kf4 {[%clk 0:00:14]} 55. Kc5 {[%clk 0:00:20.8]} 55... Rd3 {[%clk
0:00:13.9]} 56. Rc7 {[%clk 0:00:20.3]} 56... Kxe4 {[%clk 0:00:14.7]} 57. b7
{[%clk 0:00:20.3]} 57... Rb3 {[%clk 0:00:15.2]} 58. d7 {[%clk 0:00:18.5]} 58...
Nxd7+ {[%clk 0:00:14.7]} 59. Rxd7 {[%clk 0:00:20]} 59... Ke5 {[%clk 0:00:15.2]}
60. Re7+ {[%clk 0:00:20.2]} 60... Kf5 {[%clk 0:00:14.9]} 61. Rxf7 {[%clk
0:00:21.3]} 61... Ke6 {[%clk 0:00:15.8]} 62. Rc7 {[%clk 0:00:19.7]} 62... f5
{[%clk 0:00:17.2]} 63. Rc6+ {[%clk 0:00:20.3]} 63... Kd7 {[%clk 0:00:17.4]} 64.
Rb6 {[%clk 0:00:21.6]} 64... Rc3+ {[%clk 0:00:17.8]} 65. Kd4 {[%clk 0:00:22.2]}
1-0

[Event "*** MasterClass Titled Tuesday Blitz"]
[Site "Chess.com"]
[Date "2017.12.05"]
[Round "5"]
[White "champ2005"]
[Black "dusanacns"]
[Result "0-1"]
[WhiteElo "2442"]
[BlackElo "2615"]
[TimeControl "180+2"]
[EndTime "15:20:03 PST"]
[Termination "dusanacns won by resignation"]

1. e4 {[%clk 0:03:00.8]} 1... d6 {[%clk 0:03:00]} 2. d4 {[%clk 0:03:01.4]} 2...
Nf6 {[%clk 0:03:01.1]} 3. Nc3 {[%clk 0:03:02.8]} 3... e5 {[%clk 0:03:02.5]} 4.
dxe5 {[%clk 0:03:02.7]} 4... dxe5 {[%clk 0:03:04.4]} 5. Qxd8+ {[%clk 0:03:03.9]}
5... Kxd8 {[%clk 0:03:06.3]} 6. Bg5 {[%clk 0:03:04.3]} 6... c6 {[%clk
0:03:06.3]} 7. O-O-O+ {[%clk 0:03:02.1]} 7... Ke8 {[%clk 0:03:07.4]} 8. f3
{[%clk 0:02:56.9]} 8... Nbd7 {[%clk 0:03:07.5]} 9. Nh3 {[%clk 0:02:53.7]} 9...
Bc5 {[%clk 0:03:07.6]} 10. Na4 {[%clk 0:02:48.6]} 10... Be7 {[%clk 0:03:07.7]}
11. Be3 {[%clk 0:02:40.9]} 11... b5 {[%clk 0:03:06.2]} 12. Nc3 {[%clk
0:02:40.3]} 12... Bc5 {[%clk 0:03:07.3]} 13. Bxc5 {[%clk 0:02:40.6]} 13... Nxc5
{[%clk 0:03:08.1]} 14. Nf2 {[%clk 0:02:41.9]} 14... Ke7 {[%clk 0:03:07.8]} 15.
Nd3 {[%clk 0:02:42.9]} 15... Nfd7 {[%clk 0:03:05.5]} 16. Nxc5 {[%clk 0:02:43.3]}
16... Nxc5 {[%clk 0:03:06.3]} 17. Bxb5 {[%clk 0:02:00.8]} 17... cxb5 {[%clk
0:03:05.5]} 18. Nd5+ {[%clk 0:02:01.8]} 18... Kd6 {[%clk 0:02:50]} 19. Nb6+
{[%clk 0:02:01.5]} 19... Kc6 {[%clk 0:02:51]} 20. Nxa8 {[%clk 0:02:01.2]} 20...
Be6 {[%clk 0:02:52.2]} 21. b3 {[%clk 0:01:59.1]} 21... Rxa8 {[%clk 0:02:51.7]}
22. Rd2 {[%clk 0:02:00.2]} 22... a5 {[%clk 0:02:40.4]} 23. Rhd1 {[%clk
0:01:58.9]} 23... Nb7 {[%clk 0:02:31.4]} 24. Kb2 {[%clk 0:01:48.6]} 24... g5
{[%clk 0:02:31.3]} 25. Rd3 {[%clk 0:01:49.4]} 25... h5 {[%clk 0:02:27.4]} 26. g3
{[%clk 0:01:41.4]} 26... Rh8 {[%clk 0:02:17.2]} 27. a3 {[%clk 0:01:37.1]} 27...
Rh6 {[%clk 0:02:06.9]} 28. Rc3+ {[%clk 0:01:34.7]} 28... Kb6 {[%clk 0:02:07.2]}
29. f4 {[%clk 0:01:17.3]} 29... gxf4 {[%clk 0:02:04.7]} 30. gxf4 {[%clk
0:01:19.2]} 30... exf4 {[%clk 0:02:05]} 31. Rf1 {[%clk 0:01:20]} 31... h4 {[%clk
0:01:47.5]} 32. h3 {[%clk 0:01:11.7]} 32... Rf6 {[%clk 0:01:29.4]} 33. Rcf3
{[%clk 0:01:11.7]} 33... Nc5 {[%clk 0:01:30.5]} 34. Rxf4 {[%clk 0:01:12.7]}
34... Rxf4 {[%clk 0:01:31.3]} 35. Rxf4 {[%clk 0:01:14.6]} 35... Bxh3 {[%clk
0:01:32.5]} 36. Rxh4 {[%clk 0:01:15.5]} 36... Be6 {[%clk 0:01:31.2]} 37. Kc3
{[%clk 0:01:15.4]} 37... a4 {[%clk 0:01:32]} 38. bxa4 {[%clk 0:01:05.1]} 38...
Nxa4+ {[%clk 0:01:32.8]} 39. Kb4 {[%clk 0:01:03.9]} 39... Nc5 {[%clk 0:01:33.5]}
40. Rh5 {[%clk 0:00:57.1]} 40... Na6+ {[%clk 0:01:34.3]} 41. Kc3 {[%clk
0:00:55.8]} 41... Ka5 {[%clk 0:01:27.5]} 42. Rg5 {[%clk 0:00:52.3]} 42... Ka4
{[%clk 0:01:26.3]} 43. Kb2 {[%clk 0:00:53]} 43... Nb8 {[%clk 0:01:24.4]} 44. Rg8
{[%clk 0:00:52.7]} 44... Na6 {[%clk 0:01:25.6]} 45. Ra8 {[%clk 0:00:51]} 45...
Ka5 {[%clk 0:01:26.3]} 46. Kc3 {[%clk 0:00:51.7]} 46... Kb6 {[%clk 0:01:27.4]}
47. Rh8 {[%clk 0:00:47.7]} 47... Kc5 {[%clk 0:01:24.8]} 48. Rh5+ {[%clk
0:00:45.5]} 48... Kb6 {[%clk 0:01:24.2]} 49. Rh8 {[%clk 0:00:38]} 49... Kc6
{[%clk 0:01:18.5]} 50. Kd4 {[%clk 0:00:36.5]} 50... Nc7 {[%clk 0:01:02.6]} 51.
Rh5 {[%clk 0:00:28.1]} 51... Kb6 {[%clk 0:01:02.7]} 52. Kc3 {[%clk 0:00:21.8]}
52... Na6 {[%clk 0:01:01.8]} 53. Kd4 {[%clk 0:00:22.6]} 53... Nb8 {[%clk
0:01:02.5]} 54. Kc3 {[%clk 0:00:20.4]} 54... Nc6 {[%clk 0:01:03.2]} 55. Rg5
{[%clk 0:00:21.5]} 55... Bc4 {[%clk 0:01:02.4]} 56. Rh5 {[%clk 0:00:19.9]} 56...
Kc7 {[%clk 0:00:59.3]} 57. a4 {[%clk 0:00:20.3]} 57... Kb6 {[%clk 0:01:00.4]}
58. axb5 {[%clk 0:00:20.9]} 58... Bxb5 {[%clk 0:01:01.5]} 59. Rf5 {[%clk
0:00:21.7]} 59... Nd8 {[%clk 0:01:02.3]} 60. Kd4 {[%clk 0:00:22.7]} 60... Bd7
{[%clk 0:01:01.1]} 61. Rf6+ {[%clk 0:00:22.5]} 61... Be6 {[%clk 0:01:01.6]} 62.
Ke5 {[%clk 0:00:18.6]} 62... Kc5 {[%clk 0:01:02.1]} 63. Rf2 {[%clk 0:00:18.5]}
63... Nc6+ {[%clk 0:01:00.8]} 64. Kf6 {[%clk 0:00:19.5]} 64... Kd4 {[%clk
0:01:01]} 65. Kg7 {[%clk 0:00:20]} 65... Ne5 {[%clk 0:01:01.8]} 66. Re2 {[%clk
0:00:18.4]} 66... Bc4 {[%clk 0:00:54.9]} 67. Re1 {[%clk 0:00:19.3]} 67... Nf3
{[%clk 0:00:55.5]} 68. Rf1 {[%clk 0:00:19.9]} 68... Bxf1 {[%clk 0:00:55.5]} 69.
Kxf7 {[%clk 0:00:20]} 69... Ne5+ {[%clk 0:00:55.9]} 70. Kf6 {[%clk 0:00:21.1]}
70... Kxe4 {[%clk 0:00:57.8]} 71. c4 {[%clk 0:00:21.1]} 71... Nxc4 {[%clk
0:00:58.9]} 72. Kg7 {[%clk 0:00:22.3]} 72... Kf5 {[%clk 0:00:59.5]} 73. Kh8
{[%clk 0:00:23.2]} 73... Kf6 {[%clk 0:01:00.1]} 74. Kh7 {[%clk 0:00:24.3]} 74...
Ne5 {[%clk 0:01:01]} 75. Kh8 {[%clk 0:00:23.2]} 75... Bc4 {[%clk 0:01:01.7]} 76.
Kh7 {[%clk 0:00:23.9]} 76... Ng6 {[%clk 0:01:02.5]} 77. Kh6 {[%clk 0:00:24.1]}
77... Bg8 {[%clk 0:01:04]} 78. Kh5 {[%clk 0:00:25.4]} 78... Ne5 {[%clk
0:01:05.5]} 79. Kh4 {[%clk 0:00:23]} 79... Kf5 {[%clk 0:01:06.7]} 80. Kh5 {[%clk
0:00:24]} 80... Ng4 {[%clk 0:01:04.3]} 81. Kh4 {[%clk 0:00:24.6]} 81... Kf4
{[%clk 0:01:05.6]} 82. Kh3 {[%clk 0:00:26]} 82... Bd5 {[%clk 0:01:03.9]} 83. Kh4
{[%clk 0:00:27.2]} 83... Bf7 {[%clk 0:01:04.8]} 84. Kh3 {[%clk 0:00:28.1]} 84...
Ne3 {[%clk 0:01:06.1]} 85. Kh4 {[%clk 0:00:26.8]} 85... Ng2+ {[%clk 0:01:06.4]}
86. Kh3 {[%clk 0:00:27.6]} 86... Kf3 {[%clk 0:01:08.3]} 87. Kh2 {[%clk
0:00:28.9]} 87... Kf2 {[%clk 0:01:09.5]} 88. Kh1 {[%clk 0:00:28.8]} 88... Be6
{[%clk 0:01:08.6]} 89. Kh2 {[%clk 0:00:29.9]} 89... Nf4 {[%clk 0:01:10.1]} 90.
Kh1 {[%clk 0:00:30.8]} 90... Bh3 {[%clk 0:01:11.3]} 91. Kh2 {[%clk 0:00:31.6]}
91... Bf1 {[%clk 0:01:12.8]} 92. Kh1 {[%clk 0:00:32.9]} 92... Ne2 {[%clk
0:01:14.2]} 93. Kh2 {[%clk 0:00:33.9]} 93... Nd4 {[%clk 0:01:15.2]} 94. Kh1
{[%clk 0:00:34.6]} 94... Bg2+ {[%clk 0:01:16.3]} 0-1

[Event "*** MasterClass Titled Tuesday Blitz"]
[Site "Chess.com"]
[Date "2017.12.05"]
[Round "5"]
[White "ChessWarrior7197"]
[Black "AndrBaryshpolets"]
[Result "1-0"]
[WhiteElo "2652"]
[BlackElo "2475"]
[TimeControl "180+2"]
[EndTime "15:20:29 PST"]
[Termination "ChessWarrior7197 won by resignation"]

1. e4 {[%clk 0:03:01.9]} 1... e5 {[%clk 0:02:59.8]} 2. Nf3 {[%clk 0:03:01.2]}
2... Nc6 {[%clk 0:03:00.9]} 3. Bb5 {[%clk 0:03:01.1]} 3... Nf6 {[%clk
0:03:01.6]} 4. d3 {[%clk 0:02:59.7]} 4... d6 {[%clk 0:03:02.6]} 5. O-O {[%clk
0:02:59.7]} 5... a6 {[%clk 0:03:03.3]} 6. Bxc6+ {[%clk 0:02:58.7]} 6... bxc6
{[%clk 0:03:05.2]} 7. Nc3 {[%clk 0:02:57.6]} 7... c5 {[%clk 0:03:04.2]} 8. h3
{[%clk 0:02:55.8]} 8... h6 {[%clk 0:02:59.2]} 9. b3 {[%clk 0:02:46.4]} 9... Be7
{[%clk 0:02:59.7]} 10. Ne2 {[%clk 0:02:44.9]} 10... Nh5 {[%clk 0:02:50.2]} 11.
Nh2 {[%clk 0:02:42.4]} 11... Bg5 {[%clk 0:02:42.9]} 12. f4 {[%clk 0:02:36.6]}
12... exf4 {[%clk 0:02:38.7]} 13. Nxf4 {[%clk 0:02:38.5]} 13... Nxf4 {[%clk
0:02:36.3]} 14. Bxf4 {[%clk 0:02:40.4]} 14... O-O {[%clk 0:02:32.4]} 15. Bxg5
{[%clk 0:02:37.1]} 15... Qxg5 {[%clk 0:02:32.9]} 16. Qf3 {[%clk 0:02:27.8]}
16... Be6 {[%clk 0:02:29.6]} 17. Rf2 {[%clk 0:02:25.7]} 17... Rae8 {[%clk
0:02:00.5]} 18. Re1 {[%clk 0:02:23.6]} 18... Bd7 {[%clk 0:01:57]} 19. Rfe2
{[%clk 0:01:54.4]} 19... Re6 {[%clk 0:01:38.6]} 20. Nf1 {[%clk 0:01:50.1]} 20...
Rfe8 {[%clk 0:01:28.3]} 21. Ng3 {[%clk 0:01:45.6]} 21... Rg6 {[%clk 0:01:10.3]}
22. Kh2 {[%clk 0:01:42.4]} 22... Re5 {[%clk 0:01:04.7]} 23. Rf1 {[%clk
0:01:40.8]} 23... Rf6 {[%clk 0:00:54.9]} 24. Qe3 {[%clk 0:01:35.5]} 24... Qxe3
{[%clk 0:00:55.4]} 25. Rxe3 {[%clk 0:01:36.5]} 25... Rxf1 {[%clk 0:00:57.3]} 26.
Nxf1 {[%clk 0:01:37.6]} 26... f5 {[%clk 0:00:58.3]} 27. exf5 {[%clk 0:01:33.9]}
27... Rxf5 {[%clk 0:00:56.6]} 28. Kg1 {[%clk 0:01:31]} 28... Kf7 {[%clk
0:00:56.8]} 29. Ng3 {[%clk 0:01:31.1]} 29... Rf4 {[%clk 0:00:53]} 30. a4 {[%clk
0:01:23]} 30... Bc6 {[%clk 0:00:51.9]} 31. Ne2 {[%clk 0:01:22.8]} 31... Rf6
{[%clk 0:00:51]} 32. a5 {[%clk 0:01:12.5]} 32... Rf5 {[%clk 0:00:32.4]} 33. Nc3
{[%clk 0:00:55.7]} 33... Rf4 {[%clk 0:00:25.8]} 34. Re2 {[%clk 0:00:52.1]} 34...
Kf6 {[%clk 0:00:21.6]} 35. Rf2 {[%clk 0:00:50.3]} 35... Ke5 {[%clk 0:00:16.2]}
36. Rxf4 {[%clk 0:00:51.3]} 36... Kxf4 {[%clk 0:00:18.1]} 37. Kf2 {[%clk
0:00:53.2]} 37... Ke5 {[%clk 0:00:18.5]} 38. Ne2 {[%clk 0:00:54]} 38... Bd5
{[%clk 0:00:14.6]} 39. g3 {[%clk 0:00:53.7]} 39... Be6 {[%clk 0:00:16]} 40. Nf4
{[%clk 0:00:46.1]} 40... Bd7 {[%clk 0:00:17.2]} 41. h4 {[%clk 0:00:39.6]} 41...
Kd4 {[%clk 0:00:15.6]} 42. Ne2+ {[%clk 0:00:39.8]} 42... Kd5 {[%clk 0:00:16.6]}
43. Ke3 {[%clk 0:00:41]} 43... Kc6 {[%clk 0:00:17.8]} 44. c4 {[%clk 0:00:38.9]}
44... Bf5 {[%clk 0:00:16.3]} 45. Nc3 {[%clk 0:00:35.6]} 45... Kd7 {[%clk
0:00:17.4]} 46. Nd5 {[%clk 0:00:36]} 46... c6 {[%clk 0:00:16.5]} 47. Nc3 {[%clk
0:00:31.4]} 47... Ke6 {[%clk 0:00:16.3]} 48. Na2 {[%clk 0:00:29.1]} 48... Ke5
{[%clk 0:00:16.2]} 49. b4 {[%clk 0:00:29.7]} 49... Bg4 {[%clk 0:00:09.2]} 50.
bxc5 {[%clk 0:00:30.6]} 50... dxc5 {[%clk 0:00:11.1]} 51. Nc3 {[%clk 0:00:32.5]}
51... Bf5 {[%clk 0:00:10.9]} 52. Na4 {[%clk 0:00:32.5]} 52... Kd6 {[%clk
0:00:12.1]} 53. Nc3 {[%clk 0:00:32.4]} 53... Ke5 {[%clk 0:00:12.9]} 54. Ne2
{[%clk 0:00:20.2]} 54... Bg4 {[%clk 0:00:11.5]} 55. Nc3 {[%clk 0:00:21.3]} 55...
Bf5 {[%clk 0:00:11.5]} 56. Nd1 {[%clk 0:00:21.9]} 56... Bg4 {[%clk 0:00:10]} 57.
Nb2 {[%clk 0:00:23]} 57... Bh5 {[%clk 0:00:09.6]} 58. Na4 {[%clk 0:00:23.6]}
58... Kd6 {[%clk 0:00:10.8]} 59. Nc3 {[%clk 0:00:25.5]} 59... Ke5 {[%clk
0:00:10.4]} 60. Ne4 {[%clk 0:00:26.2]} 60... Bg4 {[%clk 0:00:10.5]} 61. Nxc5
{[%clk 0:00:27.3]} 61... Bc8 {[%clk 0:00:12.2]} 62. d4+ {[%clk 0:00:29.1]} 62...
Kf5 {[%clk 0:00:12.7]} 63. Kf3 {[%clk 0:00:29.5]} 63... Kf6 {[%clk 0:00:12.4]}
64. Kf4 {[%clk 0:00:30.4]} 64... g5+ {[%clk 0:00:13.2]} 65. hxg5+ {[%clk
0:00:32.3]} 65... hxg5+ {[%clk 0:00:15.1]} 66. Ke3 {[%clk 0:00:31.7]} 66... Kf5
{[%clk 0:00:16]} 67. Ne4 {[%clk 0:00:32.8]} 67... Be6 {[%clk 0:00:15.5]} 68. Kf3
{[%clk 0:00:24.2]} 68... Kg6 {[%clk 0:00:12.9]} 69. d5 {[%clk 0:00:17.8]} 69...
cxd5 {[%clk 0:00:13.7]} 70. Nc5 {[%clk 0:00:18.6]} 70... Bf7 {[%clk 0:00:07.7]}
71. cxd5 {[%clk 0:00:17.9]} 71... Bxd5+ {[%clk 0:00:08.4]} 72. Ke3 {[%clk
0:00:19.8]} 72... Bc4 {[%clk 0:00:09.9]} 73. Kd4 {[%clk 0:00:21.7]} 73... Be2
{[%clk 0:00:11]} 74. Ke5 {[%clk 0:00:23.6]} 74... Bf1 {[%clk 0:00:10.7]} 75. Ne4
{[%clk 0:00:24.3]} 75... Bd3 {[%clk 0:00:11]} 76. Nc5 {[%clk 0:00:24.8]} 76...
Bb5 {[%clk 0:00:11.9]} 77. Ne6 {[%clk 0:00:25.6]} 77... Bf1 {[%clk 0:00:10.5]}
78. Nd4 {[%clk 0:00:26.2]} 78... Bc4 {[%clk 0:00:10.9]} 79. Nf5 {[%clk
0:00:27.2]} 79... Bd3 {[%clk 0:00:11.2]} 80. Ne7+ {[%clk 0:00:28.1]} 80... Kf7
{[%clk 0:00:11.8]} 81. Nd5 {[%clk 0:00:28.4]} 81... Kg6 {[%clk 0:00:12.9]} 82.
Ne3 {[%clk 0:00:28]} 82... Bb5 {[%clk 0:00:13.7]} 83. Kd4 {[%clk 0:00:29.9]}
83... Kf6 {[%clk 0:00:14]} 84. Kd5 {[%clk 0:00:31.3]} 84... Be2 {[%clk
0:00:14.4]} 85. Kd6 {[%clk 0:00:32.6]} 85... Bd3 {[%clk 0:00:14.8]} 86. Kd5
{[%clk 0:00:34.5]} 86... Be2 {[%clk 0:00:15.9]} 87. Kd4 {[%clk 0:00:35.9]} 87...
Bb5 {[%clk 0:00:16.9]} 88. Nc4 {[%clk 0:00:35.9]} 88... Kf5 {[%clk 0:00:17.3]}
89. Nd6+ {[%clk 0:00:36.8]} 89... Kg4 {[%clk 0:00:13.2]} 90. Nxb5 {[%clk
0:00:38.7]} 90... axb5 {[%clk 0:00:14.5]} 91. a6 {[%clk 0:00:39.4]} 1-0